fUST/lending_fUST_20250911
["ID","MTS","AMOUNT","RATE_DAILY","PERIOD"]
[384854951,1757595040857,-481.02814707,0.00013698,2]
[384854952,1757595040867,-480.0,0.00013698,2]
[384854953,1757595040877,-480.0,0.00013698,2]
[384854954,1757595040888,-357.09168413,0.00013698,2]
[384854955,1757595040897,-233.25019213,0.00013698,2]
[384854956,1757595040906,-480.0,0.00013698,2]
[384854957,1757595040916,-480.0,0.00013698,2]
[384854958,1757595040925,-480.0,0.00013698,2]
[384854959,1757595040936,-484.2803269,0.00013698,2]
[384854960,1757595040945,-480.0,0.00013698,2]
[384854961,1757595040955,-480.0,0.00013698,2]
[384854962,1757595040964,-480.0,0.00013698,2]
[384854963,1757595040974,-480.0,0.00013698,2]
[384854964,1757595040983,-480.0,0.00013698,2]
[384854965,1757595040992,-76.87900636,0.00013698,2]
[384854966,1757595041005,-342.83536224,0.00013698,2]
[384854967,1757595041015,-480.0,0.00013698,2]
[384854968,1757595041024,-480.0,0.00013698,2]
[384854969,1757595041034,-483.25104609,0.00013698,2]
[384854970,1757595041043,-480.0,0.00013698,2]
[384854971,1757595041053,-480.0,0.00013698,2]
[384854972,1757595041062,-480.0,0.00013698,2]
[384854973,1757595041072,-480.0,0.00013698,2]
[384854974,1757595041081,-480.0,0.00013698,2]
[384854975,1757595041091,-480.0,0.00013698,2]
[384854976,1757595041100,-480.0,0.00013698,2]
[384854977,1757595041110,-480.0,0.00013698,2]
[384854978,1757595041120,-480.0,0.00013698,2]
[384854979,1757595041129,-480.0,0.00013698,2]
[384854980,1757595041139,-288.32359427,0.00013698,2]
[384854981,1757595041149,-480.0,0.00013698,2]
[384854982,1757595041159,-480.0,0.00013698,2]
[384854983,1757595041168,-480.0,0.00013698,2]
[384854984,1757595041177,-480.0,0.00013698,2]
[384854985,1757595041186,-480.0,0.00013698,2]
[384854986,1757595041195,-480.0,0.00013698,2]
[384854987,1757595041205,-480.0,0.00013698,2]
[384854988,1757595041215,-480.0,0.00013698,2]
[384854989,1757595041224,-480.0,0.00013698,2]
[384854990,1757595041233,-480.0,0.00013698,2]
[384854991,1757595041243,-480.0,0.00013698,2]
[384854992,1757595041252,-480.0,0.00013698,2]
[384854993,1757595041260,-480.0,0.00013698,2]
[384854994,1757595041270,-480.0,0.00013698,2]
[384854995,1757595041279,-480.0,0.00013698,2]
[384854996,1757595041288,-480.0,0.00013698,2]
[384854997,1757595041297,-480.0,0.00013698,2]
[384854998,1757595041307,-480.0,0.00013698,2]
[384854999,1757595041316,-480.0,0.00013698,2]
[384855000,1757595041425,-480.0,0.00013698,2]
[384855001,1757595041435,-480.0,0.00013698,2]
[384855002,1757595041444,-480.0,0.00013698,2]
[384855003,1757595041453,-507.6968546,0.00013698,2]
[384855004,1757595041462,-480.0,0.00013698,2]
[384855005,1757595041471,-198.55491557,0.00013698,2]
[384855006,1757595041480,-480.0,0.00013698,2]
[384855007,1757595041489,-480.0,0.00013698,2]
[384855008,1757595041498,-480.0,0.00013698,2]
[384855009,1757595041507,-467.5302531,0.00013698,2]
[384855010,1757595041516,-480.0,0.00013698,2]
[384855011,1757595041527,-480.0,0.00013698,2]
[384855012,1757595041536,-480.0,0.00013698,2]
[384855013,1757595041544,-480.0,0.00013698,2]
[384855014,1757595041553,-443.80797413,0.00013698,2]
[384855062,1757595044636,-36.19202587,0.00013698,2]
[384855064,1757595044648,-480.0,0.00013698,2]
[384855066,1757595044658,-480.0,0.00013698,2]
[384855068,1757595044667,-480.0,0.00013698,2]
[384855070,1757595044677,-480.0,0.00013698,2]
[384855072,1757595044696,-480.0,0.00013698,2]
[384855074,1757595044710,-483.11884981,0.00013698,2]
[384855076,1757595044719,-480.0,0.00013698,2]
[384855079,1757595044729,-480.0,0.00013698,2]
[384855082,1757595044738,-480.0,0.00013698,2]
[384855084,1757595044747,-480.0,0.00013698,2]
[384855086,1757595044756,-480.0,0.00013698,2]
[384855089,1757595044767,-480.0,0.00013698,2]
[384855091,1757595044776,-480.0,0.00013698,2]
[384855093,1757595044786,-480.0,0.00013698,2]
[384855095,1757595044795,-480.0,0.00013698,2]
[384855096,1757595044804,-480.0,0.00013698,2]
[384855098,1757595044813,-480.0,0.00013698,2]
[384855100,1757595044823,-500.0,0.00013698,2]
[384855103,1757595044833,-364.236476,0.00013699,2]
[384855104,1757595044842,-200.482448,0.00013699,2]
[384855106,1757595044852,-536.72782606,0.00013972,2]
[384855109,1757595044861,-480.0,0.00013972,2]
[384855110,1757595044872,-480.0,0.00013972,2]
[384855113,1757595044881,-480.0,0.00013972,2]
[384855114,1757595044892,-480.0,0.00013972,2]
[384855117,1757595044902,-480.0,0.00013972,2]
[384855119,1757595044912,-480.0,0.00013972,2]
[384855121,1757595044922,-480.0,0.00013972,2]
[384855123,1757595044933,-480.0,0.00013972,2]
[384855125,1757595044942,-480.0,0.00013972,2]
[384855127,1757595044952,-480.0,0.00013972,2]
[384855129,1757595044961,-334.40167065,0.00013972,2]
[384855131,1757595044972,-480.0,0.00013972,2]
[384855132,1757595044983,-480.0,0.00013972,2]
[384855133,1757595044993,-480.0,0.00013972,2]
[384855134,1757595045002,-480.0,0.00013972,2]
[384855135,1757595045012,-480.0,0.00013972,2]
[384855136,1757595045021,-307.82516922,0.00013972,2]
[384855137,1757595045031,-566.08777429,0.00013972,2]
[384855138,1757595045040,-480.0,0.00013972,2]
[384855139,1757595045049,-480.0,0.00013972,2]
[384855140,1757595045060,-604.08,0.00013972,2]
[384855141,1757595045069,-480.0,0.00013972,2]
[384855142,1757595045079,-480.0,0.00013972,2]
[384855143,1757595045088,-480.0,0.00013972,2]
[384855144,1757595045098,-480.0,0.00013972,2]
[384855145,1757595045107,-480.0,0.00013972,2]
[384855146,1757595045116,-480.0,0.00013972,2]
[384855147,1757595045126,-480.0,0.00013972,2]
[384855148,1757595045135,-480.0,0.00013972,2]
[384855149,1757595045146,-480.0,0.00013972,2]
[384855150,1757595045155,-480.0,0.00013972,2]
[384855151,1757595045165,-480.0,0.00013972,2]
[384855152,1757595045174,-480.0,0.00013972,2]
[384855153,1757595045183,-554.05,0.00013972,2]
[384855154,1757595045192,-480.0,0.00013972,2]
[384855156,1757595045201,-480.0,0.00013972,2]
[384855157,1757595045210,-376.21909679,0.00013972,2]
[384855158,1757595045219,-480.0,0.00013972,2]
[384855159,1757595045228,-480.0,0.00013972,2]
[384855161,1757595045238,-480.0,0.00013972,2]
[384855163,1757595045247,-480.0,0.00013972,2]
[384855166,1757595045257,-480.0,0.00013972,2]
[384855169,1757595045267,-480.0,0.00013972,2]
[384855172,1757595045276,-480.0,0.00013972,2]
[384855175,1757595045286,-480.0,0.00013972,2]
[384855177,1757595045295,-480.0,0.00013972,2]
[384855180,1757595045305,-480.0,0.00013972,2]
[384855182,1757595045315,-480.0,0.00013972,2]
[384855184,1757595045324,-480.0,0.00013972,2]
[384855186,1757595045334,-480.0,0.00013972,2]
[384855187,1757595045344,-480.0,0.00013972,2]
[384855190,1757595045353,-480.0,0.00013972,2]
[384855191,1757595045363,-480.0,0.00013972,2]
[384855194,1757595045372,-480.0,0.00013972,2]
[384855195,1757595045382,-480.0,0.00013972,2]
[384855197,1757595045392,-480.0,0.00013972,2]
[384855200,1757595045402,-480.0,0.00013972,2]
[384855202,1757595045411,-480.0,0.00013972,2]
[384855204,1757595045421,-480.0,0.00013972,2]
[384855206,1757595045430,-480.0,0.00013972,2]
[384855208,1757595045439,-480.0,0.00013972,2]
[384855210,1757595045449,-480.0,0.00013972,2]
[384855212,1757595045458,-480.0,0.00013972,2]
[384855214,1757595045467,-480.0,0.00013972,2]
[384855215,1757595045476,-480.0,0.00013972,2]
[384855217,1757595045485,-480.0,0.00013972,2]
[384855219,1757595045495,-480.0,0.00013972,2]
[384855221,1757595045504,-480.0,0.00013972,2]
[384855224,1757595045513,-480.0,0.00013972,2]
[384855225,1757595045522,-480.0,0.00013972,2]
[384855228,1757595045531,-480.0,0.00013972,2]
[384855229,1757595045541,-480.0,0.00013972,2]
[384855231,1757595045550,-480.0,0.00013972,2]
[384855234,1757595045559,-480.0,0.00013972,2]
[384855236,1757595045569,-480.0,0.00013972,2]
[384855238,1757595045578,-480.0,0.00013972,2]
[384855240,1757595045588,-480.0,0.00013972,2]
[384855241,1757595045598,-480.0,0.00013972,2]
[384855244,1757595045607,-480.0,0.00013972,2]
[384855245,1757595045617,-480.0,0.00013972,2]
[384855247,1757595045626,-480.0,0.00013972,2]
[384855249,1757595045635,-480.0,0.00013972,2]
[384855251,1757595045647,-480.0,0.00013972,2]
[384855253,1757595045657,-480.0,0.00013972,2]
[384855256,1757595045667,-480.0,0.00014246,2]
[384855257,1757595045676,-480.0,0.00014246,2]
[384855259,1757595045690,-317.92050076,0.00014246,2]
[384855261,1757595045699,-171.9137872,0.00014246,2]
[384855263,1757595045708,-434.44261328,0.00014246,2]
[384855266,1757595045717,-249.55,0.00014246,2]
[384855268,1757595045727,-277.89,0.00014246,2]
[384855269,1757595045736,-480.0,0.00014246,2]
[384855272,1757595045746,-532.46962328,0.00014246,2]
[384855274,1757595045755,-480.0,0.00014246,2]
[384855276,1757595045765,-480.0,0.00014246,2]
[384855278,1757595045776,-480.0,0.00014246,2]
[384855280,1757595045786,-168.39498634,0.00014246,2]
[384855282,1757595045794,-480.0,0.00014246,2]
[384855284,1757595045804,-480.0,0.00014246,2]
[384855286,1757595045813,-516.87,0.00014246,2]
[384855288,1757595045822,-548.40195193,0.00014246,2]
[384855290,1757595045831,-480.0,0.00014246,2]
[384855292,1757595045840,-480.0,0.00014246,2]
[384855294,1757595045849,-356.83,0.00014246,2]
[384855296,1757595045859,-480.0,0.00014246,2]
[384855298,1757595045868,-511.52,0.00014246,2]
[384855300,1757595045878,-480.0,0.00014246,2]
[384855302,1757595045887,-330.74,0.00014246,2]
[384855304,1757595045897,-205.51573194,0.00014246,2]
[384855306,1757595045906,-480.0,0.00014246,2]
[384855308,1757595045915,-480.0,0.00014246,2]
[384855310,1757595045924,-480.0,0.00014246,2]
[384855311,1757595045933,-480.0,0.00014246,2]
[384855313,1757595045942,-480.0,0.00014246,2]
[384855315,1757595045952,-457.30565335,0.00014246,2]
[384855318,1757595045961,-480.0,0.00014246,2]
[384855319,1757595045971,-480.0,0.00014246,2]
[384855321,1757595045980,-480.0,0.00014246,2]
[384855323,1757595045989,-488.27768214,0.00014246,2]
[384855326,1757595045998,-289.87206491,0.00014246,2]
[384855328,1757595046008,-480.0,0.00014246,2]
[384855330,1757595046017,-480.0,0.0001452,2]
[384855331,1757595046027,-370.44585829,0.0001452,2]
[384855333,1757595046036,-480.0,0.0001452,2]
[384855335,1757595046045,-480.0,0.0001452,2]
[384855337,1757595046054,-480.0,0.0001452,2]
[384855339,1757595046064,-480.0,0.0001452,2]
[384855341,1757595046073,-1319.0,0.00015066,2]
[384855343,1757595046083,-160.0,0.00015111,2]
[384855345,1757595046092,-233.10680167,0.00015112,2]
[384855347,1757595046101,-846.96613202,0.00015112,2]
[384855349,1757595046110,-160.0,0.00015112,2]
[384855351,1757595046119,-217.69300629,0.00015112,2]
[384855353,1757595046128,-160.0,0.00015112,2]
[384855355,1757595046136,-3322.74446476,0.000199,2]
[384855357,1757595046146,-149371.40347284,0.0002,2]
[384855360,1757595046157,-500.0,0.0002,2]
[384855362,1757595046166,-364.236476,0.00020187,2]
[384855364,1757595046176,-500.0,0.00020274,2]
[384855366,1757595046185,-3322.74446459,0.00020327,2]
[384855368,1757595046195,-151.0,0.0002034,2]
[384855370,1757595046204,-200.02839908,0.0002034,2]
[384855372,1757595046214,-200.482448,0.00020548,2]
[384855374,1757595046223,-3322.74446459,0.00020755,2]
[384855376,1757595046232,-3322.74446459,0.00021182,2]
[384855378,1757595046242,-3322.74446459,0.0002161,2]
[384855380,1757595046251,-506.63465649,0.00021917,2]
[384855382,1757595046260,-500.0,0.00021973,2]
[384855384,1757595046270,-4228.1,0.00022,7]
[384855386,1757595046279,-101011.14,0.00022,7]
[384855388,1757595046288,-11605.78,0.00022,7]
[384855390,1757595046298,-1757.19,0.00022,7]
[384855392,1757595046307,-416.29,0.00022,2]
[384855394,1757595046316,-3322.74446459,0.00022037,2]
[384855396,1757595046326,-3322.74446459,0.00022464,2]
[384855398,1757595046335,-275.0,0.000228,2]
[384855400,1757595046345,-416.29,0.00022816,2]
[384855402,1757595046354,-3322.74446459,0.00022892,2]
[384855404,1757595046363,-900.0,0.00022986,2]
[384855406,1757595046372,-202.0,0.0002316,7]
[384855408,1757595046381,-404.59763346,0.00023287,2]
[384855410,1757595046392,-1069.26,0.00023287,2]
[384855412,1757595046401,-3322.74446459,0.00023319,2]
[384855414,1757595046410,-460.97,0.00023387,3]
[384855416,1757595046419,-416.29,0.00023631,2]
[384855418,1757595046428,-3322.74446459,0.00023747,2]
[384855420,1757595046437,-15339.22869176,0.000239,3]
[384855422,1757595046446,-1829.22964,0.0002392,5]
[384855424,1757595046455,-1000.0,0.0002394,5]
[384855426,1757595046464,-153.42891274,0.0002395,2]
[384855428,1757595046473,-613.10193531,0.0002395,2]
[384855430,1757595046483,-1000.0,0.0002396,5]
[384855432,1757595046491,-1000.0,0.0002397,5]
[384855434,1757595046500,-1000.0,0.0002398,5]
[384855436,1757595046509,-160.0,0.00024,7]
[384855438,1757595046518,-11605.78,0.00024,7]
[384855440,1757595046527,-1000.0,0.00024,5]
[384855442,1757595046536,-2009.79006436,0.00024,2]
[384855444,1757595046546,-500.0,0.00024,9]
[384855446,1757595046555,-1000.0,0.00024,24]
[384855448,1757595046564,-250.0,0.00024,10]
[384855450,1757595046574,-846.96613202,0.00024,7]
[384855452,1757595046583,-217.69300629,0.00024,7]
[384855454,1757595046592,-500.0,0.00024,9]
[384855456,1757595046601,-1757.19,0.00024,7]
[384855458,1757595046610,-233.10680167,0.00024,7]
[384855460,1757595046619,-900.0,0.00024082,2]
[384855461,1757595046629,-24673.08400968,0.000241,7]
[384855464,1757595046643,-17226.81560829,0.000241,7]
[384856713,1757595058999,169.33814378,0.00013561,2]
[384856960,1757595067967,169.33814378,0.0001356,2]
[384857953,1757595413979,2700.0,0.00013559,2]
[384857954,1757595423824,2400.0,0.00013559,2]
[384857955,1757595440710,904.38343471,0.00013559,2]
[384857956,1757595449316,428.54912596,0.00013559,2]
[384857957,1757595449340,775.83430875,0.00013559,2]
[384857958,1757595474451,300.0,0.00013559,2]
[384857959,1757595591795,169.33814378,0.00013596,2]
[384857960,1757595687413,300.0,0.00013558,2]
[384857961,1757595712427,300.0,0.00013558,2]
[384857962,1757595737705,1500.0,0.00013558,2]
[384857963,1757595754288,250.0,0.00013558,2]
[384857964,1757595762493,1500.0,0.00013558,2]
[384857965,1757595779956,250.0,0.00013558,2]
[384857966,1757595789000,894.55432674,0.00013558,2]
[384857967,1757595805106,250.0,0.00013558,2]
[384857969,1757595813392,250.0,0.00013558,2]
[384857970,1757595821722,200.0,0.00028345,60]
[384857971,1757595830427,250.0,0.00013558,2]
[384857972,1757595835245,200.0,0.00028345,60]
[384857973,1757595839254,250.0,0.00013558,2]
[384857974,1757595842606,200.0,0.00028345,60]
[384857975,1757595864015,2775.71241432,0.000145,9]
[384857976,1757595864847,200.0,0.00028345,60]
[384857977,1757595870888,200.0,0.00028345,60]
[384857978,1757595888211,248.87,0.00028347,60]
[384857979,1757595888807,1965.33827911,0.000145,9]
[384857980,1757595890412,403.72706601,0.00027397,120]
[384857982,1757596019220,186.441142,0.00027397,120]
[384857983,1757596028836,151.97,0.00027397,120]
[384857984,1757596031308,668.16,0.00027397,120]
[384857985,1757596048365,250.0,0.000145,9]
[384857986,1757596072558,250.0,0.00013462,2]
[384857992,1757596200372,523.95495963,0.00013462,2]
[384858023,1757596232242,-433.26733068,0.00013598,2]
[384858026,1757596232254,-202.10919482,0.00013598,2]
[384858028,1757596232263,-545.2775731,0.00013598,2]
[384858030,1757596232273,-1200.0,0.00013694,2]
[384858031,1757596232284,-300.0,0.00013695,2]
[384858033,1757596232293,-1200.0,0.00013695,2]
[384858035,1757596232302,-500.0,0.00013696,2]
[384858037,1757596232311,-500.0,0.00013696,2]
[384858039,1757596232322,-500.0,0.00013696,2]
[384858041,1757596232331,-500.0,0.00013696,2]
[384858044,1757596232341,-438.92948231,0.00013696,2]
[384858046,1757596232351,-245.48094085,0.00013697,2]
[384858048,1757596232365,-383.488,0.00013697,2]
[384858050,1757596232377,-21872.20895107,0.00013697,2]
[384858052,1757596232387,-500.0,0.00013697,2]
[384858054,1757596232396,-500.0,0.00013697,2]
[384858056,1757596232405,-500.0,0.00013697,2]
[384858058,1757596232414,-500.0,0.00013697,2]
[384858060,1757596232425,-500.0,0.00013697,2]
[384858062,1757596232434,-407.94440346,0.00013697,2]
[384858064,1757596232443,-500.0,0.00013697,2]
[384858066,1757596232453,-500.0,0.00013697,2]
[384858067,1757596232462,-500.0,0.00013697,2]
[384858069,1757596232472,-500.0,0.00013697,2]
[384858071,1757596232481,-500.0,0.00013697,2]
[384858073,1757596232490,-500.0,0.00013697,2]
[384858075,1757596232499,-500.0,0.00013697,2]
[384858076,1757596232508,-198.0133408,0.00013697,2]
[384858077,1757596232518,-341.37157957,0.00013697,2]
[384858078,1757596232527,-269.17423055,0.00013697,2]
[384858079,1757596232537,-500.0,0.00013697,2]
[384858080,1757596232546,-257.50239714,0.00013697,2]
[384858081,1757596232555,-480.0,0.00013698,2]
[384858082,1757596232565,-480.0,0.00013698,2]
[384858083,1757596232575,-462.41429711,0.00013698,2]
[384858084,1757596232585,-480.0,0.00013698,2]
[384858085,1757596232594,-480.0,0.00013698,2]
[384858086,1757596232604,-480.0,0.00013698,2]
[384858087,1757596232613,-480.0,0.00013698,2]
[384858088,1757596232623,-480.0,0.00013698,2]
[384858089,1757596232744,-480.0,0.00013698,2]
[384858090,1757596232760,-480.0,0.00013698,2]
[384858091,1757596232769,-480.0,0.00013698,2]
[384858092,1757596232779,-480.0,0.00013698,2]
[384858093,1757596232788,-480.0,0.00013698,2]
[384858094,1757596232797,-524.63870303,0.00013698,2]
[384858095,1757596232806,-480.0,0.00013698,2]
[384858096,1757596232816,-480.0,0.00013698,2]
[384858097,1757596232825,-341.44442644,0.00013698,2]
[384858098,1757596232834,-480.0,0.00013698,2]
[384858099,1757596232843,-191.61698532,0.00013698,2]
[384858100,1757596232852,-297.582419,0.00013698,2]
[384858101,1757596232862,-480.0,0.00013698,2]
[384858102,1757596232871,-480.0,0.00013698,2]
[384858103,1757596232880,-480.0,0.00013698,2]
[384858104,1757596232889,-480.0,0.00013698,2]
[384858105,1757596232899,-480.0,0.00013698,2]
[384858106,1757596232908,-500.0,0.00013698,2]
[384858107,1757596232917,-500.0,0.00013698,2]
[384858108,1757596232928,-480.0,0.00013698,2]
[384858109,1757596232937,-480.0,0.00013698,2]
[384858110,1757596232946,-480.0,0.00013698,2]
[384858111,1757596232956,-321.60384679,0.00013698,2]
[384858112,1757596232965,-480.0,0.00013698,2]
[384858113,1757596232974,-480.0,0.00013698,2]
[384858114,1757596232983,-480.0,0.00013698,2]
[384858115,1757596232993,-480.0,0.00013698,2]
[384858116,1757596233002,-490.52859399,0.00013698,2]
[384858117,1757596233012,-480.0,0.00013698,2]
[384858118,1757596233021,-341.03740279,0.00013698,2]
[384858119,1757596233034,-138.96259721,0.00013698,2]
[384858120,1757596233044,-480.0,0.00013698,2]
[384858121,1757596233053,-480.0,0.00013698,2]
[384858122,1757596233062,-480.0,0.00013698,2]
[384858123,1757596233072,-480.0,0.00013698,2]
[384858124,1757596233081,-462.69222254,0.00013698,2]
[384858125,1757596233091,-565.21877005,0.00013698,2]
[384858126,1757596233100,-482.13806269,0.00013698,2]
[384858127,1757596233110,-480.0,0.00013698,2]
[384858128,1757596233119,-480.0,0.00013698,2]
[384858129,1757596233129,-480.0,0.00013698,2]
[384858130,1757596233139,-480.0,0.00013698,2]
[384858131,1757596233148,-480.0,0.00013698,2]
[384858132,1757596233158,-480.0,0.00013698,2]
[384858133,1757596233168,-480.0,0.00013698,2]
[384858134,1757596233179,-480.0,0.00013698,2]
[384858135,1757596233189,-480.0,0.00013698,2]
[384858136,1757596233199,-480.0,0.00013698,2]
[384858137,1757596233209,-515.78,0.00013698,2]
[384858138,1757596233219,-480.0,0.00013698,2]
[384858139,1757596233228,-480.0,0.00013698,2]
[384858140,1757596233238,-480.0,0.00013698,2]
[384858141,1757596233247,-480.0,0.00013698,2]
[384858142,1757596233257,-480.0,0.00013698,2]
[384858143,1757596233267,-480.0,0.00013698,2]
[384858144,1757596233279,-484.80241787,0.00013698,2]
[384858145,1757596233289,-480.0,0.00013698,2]
[384858146,1757596233298,-262.03649578,0.00013698,2]
[384858147,1757596233307,-480.0,0.00013698,2]
[384858148,1757596233318,-480.0,0.00013698,2]
[384858149,1757596233328,-480.0,0.00013698,2]
[384858150,1757596233338,-482.80431564,0.00013698,2]
[384858151,1757596233347,-480.0,0.00013698,2]
[384858152,1757596233357,-435.60538689,0.00013698,2]
[384858153,1757596233367,-480.0,0.00013698,2]
[384858154,1757596233376,-480.0,0.00013698,2]
[384858155,1757596233386,-243.99611491,0.00013698,2]
[384858156,1757596233396,-480.0,0.00013698,2]
[384858157,1757596233406,-481.38970939,0.00013698,2]
[384858158,1757596233415,-480.0,0.00013698,2]
[384858159,1757596233425,-480.0,0.00013698,2]
[384858160,1757596233434,-480.0,0.00013698,2]
[384858161,1757596233444,-601.75679412,0.00013698,2]
[384858162,1757596233454,-483.75456902,0.00013698,2]
[384858163,1757596233465,-377.04068905,0.00013698,2]
[384858164,1757596233475,-480.0,0.00013698,2]
[384858165,1757596233484,-480.0,0.00013698,2]
[384858166,1757596233494,-480.0,0.00013698,2]
[384858167,1757596233503,-480.0,0.00013698,2]
[384858168,1757596233513,-480.0,0.00013698,2]
[384858169,1757596233522,-531.1609211,0.00013698,2]
[384858170,1757596233531,-480.0,0.00013698,2]
[384858171,1757596233540,-480.0,0.00013698,2]
[384858172,1757596233550,-480.0,0.00013698,2]
[384858173,1757596233559,-485.3992557,0.00013698,2]
[384858174,1757596233568,-480.0,0.00013698,2]
[384858175,1757596233578,-615.84999281,0.00013698,2]
[384858176,1757596233587,-480.0,0.00013698,2]
[384858177,1757596233596,-480.0,0.00013698,2]
[384858178,1757596233606,-410.97829499,0.00013698,2]
[384858179,1757596233615,-480.0,0.00013698,2]
[384858180,1757596233625,-480.0,0.00013698,2]
[384858181,1757596233634,-480.0,0.00013698,2]
[384858182,1757596233643,-480.0,0.00013698,2]
[384858183,1757596233653,-480.0,0.00013698,2]
[384858184,1757596233662,-480.0,0.00013698,2]
[384858185,1757596233672,-487.26565924,0.00013698,2]
[384858186,1757596233683,-480.0,0.00013698,2]
[384858187,1757596233693,-480.0,0.00013698,2]
[384858188,1757596233702,-480.0,0.00013698,2]
[384858189,1757596233711,-480.0,0.00013698,2]
[384858190,1757596233722,-224.91874474,0.00013698,2]
[384858191,1757596233731,-480.0,0.00013698,2]
[384858192,1757596233741,-480.0,0.00013698,2]
[384858193,1757596233750,-480.0,0.00013698,2]
[384858194,1757596233759,-480.0,0.00013698,2]
[384858195,1757596233769,-480.0,0.00013698,2]
[384858196,1757596233778,-480.0,0.00013698,2]
[384858197,1757596233787,-480.0,0.00013698,2]
[384858198,1757596233797,-480.0,0.00013698,2]
[384858199,1757596233806,-480.0,0.00013698,2]
[384858200,1757596233815,-480.0,0.00013698,2]
[384858201,1757596233825,-480.0,0.00013698,2]
[384858202,1757596233834,-480.0,0.00013698,2]
[384858203,1757596233843,-535.8,0.00013698,2]
[384858204,1757596233852,-480.0,0.00013698,2]
[384858205,1757596233861,-480.0,0.00013698,2]
[384858206,1757596233871,-480.0,0.00013698,2]
[384858207,1757596233880,-420.74100698,0.00013698,2]
[384858208,1757596233889,-480.0,0.00013698,2]
[384858209,1757596233899,-480.0,0.00013698,2]
[384858210,1757596233908,-480.0,0.00013698,2]
[384858211,1757596233918,-480.0,0.00013698,2]
[384858212,1757596233929,-480.0,0.00013698,2]
[384858213,1757596233938,-480.0,0.00013698,2]
[384858214,1757596233947,-480.0,0.00013698,2]
[384858215,1757596233957,-190.13547588,0.00013698,2]
[384858216,1757596233966,-480.0,0.00013698,2]
[384858217,1757596233975,-485.46850804,0.00013698,2]
[384858218,1757596233985,-480.0,0.00013698,2]
[384858219,1757596233994,-480.0,0.00013698,2]
[384858220,1757596234003,-481.80064889,0.00013698,2]
[384858221,1757596234013,-480.0,0.00013698,2]
[384858222,1757596234022,-480.0,0.00013698,2]
[384858223,1757596234031,-530.36517927,0.00013698,2]
[384858224,1757596234041,-480.0,0.00013698,2]
[384858225,1757596234051,-480.0,0.00013698,2]
[384858226,1757596234060,-436.0,0.00013698,2]
[384858227,1757596234071,-480.0,0.00013698,2]
[384858228,1757596234080,-888.42,0.00013698,2]
[384858229,1757596234090,-888.42,0.00013698,2]
[384858230,1757596234100,-888.42,0.00013698,2]
[384858231,1757596234110,-888.42,0.00013698,2]
[384858232,1757596234119,-888.42,0.00013698,2]
[384858233,1757596234128,-888.42,0.00013698,2]
[384858234,1757596234138,-888.42,0.00013698,2]
[384858235,1757596234147,-888.42,0.00013698,2]
[384858236,1757596234157,-480.0,0.00013698,2]
[384858237,1757596234166,-480.0,0.00013698,2]
[384858238,1757596234175,-3373.83,0.00013698,2]